bitfinex/quotes_BTCUSD_20250105
["timestamp","ask_amount","ask_price","bid_price","bid_amount"]
[1736087046357,0.184722,97444.0,97430.0,1.63591978]
[1736087046713,0.00253995,97443.0,97431.0,0.2399061]
[1736087046917,0.00253995,97443.0,97432.0,0.03193346]
[1736087047205,0.184715,97448.0,97442.0,1.5]
[1736087047421,0.184715,97448.0,97433.0,0.32066178]
[1736087047422,0.18486367,97448.0,97443.0,0.13591978]
[1736087047556,0.00014867,97448.0,97445.0,0.184719]
[1736087047761,0.00014867,97448.0,97447.0,1.5]
[1736087047961,0.00014867,97448.0,97447.0,1.63591978]
[1736087048396,0.00014867,97448.0,97447.0,1.82063478]
[1736087049628,0.00014867,97448.0,97447.0,1.63591978]
[1736087049942,0.00014867,97448.0,97447.0,1.7459061]
[1736087051747,0.00014867,97448.0,97447.0,1.7549061]
[1736087051967,0.00014867,97448.0,97447.0,1.7459061]
[1736087052122,0.00014867,97448.0,97447.0,1.83776037]
[1736087052331,0.00014867,97448.0,97447.0,1.84076037]
[1736087052548,0.00014867,97448.0,97447.0,1.84876037]
[1736087052955,0.00014867,97448.0,97447.0,1.85628037]
[1736087053175,0.00014867,97448.0,97447.0,1.84828037]
[1736087053551,0.00014867,97448.0,97447.0,1.85428037]
[1736087055593,0.00014867,97448.0,97447.0,1.84676037]
[1736087055817,0.00014867,97448.0,97447.0,1.85428037]
[1736087056018,0.00014867,97448.0,97447.0,2.10167683]
[1736087056219,0.0001708,97454.0,97447.0,2.10167683]
[1736087056442,0.0001708,97454.0,97448.0,0.14927916]
[1736087056674,0.0001708,97454.0,97449.0,0.03193346]
[1736087056851,0.0001708,97454.0,97448.0,0.1173457]
[1736087056852,0.0001708,97454.0,97450.0,0.13591978]
[1736087057080,0.0001708,97454.0,97451.0,0.03193346]
[1736087057288,0.0001708,97454.0,97453.0,1.5]
[1736087057490,0.0001708,97454.0,97453.0,1.7399061]
[1736087059692,0.0001708,97454.0,97453.0,1.7489061]
[1736087060048,0.0001708,97454.0,97453.0,1.84585488]
[1736087061274,0.0001708,97454.0,97453.0,1.7539061]
[1736087062497,0.0001708,97454.0,97453.0,1.72197264]
[1736087064176,0.0001708,97454.0,97453.0,1.93862882]
[1736087066210,0.0001708,97454.0,97453.0,2.27825127]
[1736087066442,0.0001708,97454.0,97453.0,0.77825127]
[1736087067274,0.0001708,97454.0,97453.0,0.85965127]
[1736087067481,0.0001706,97475.0,97453.0,2.11202447]
[1736087067661,0.0001706,97475.0,97458.0,0.184694]
[1736087067908,0.0001706,97475.0,97458.0,0.34616032]
[1736087068298,0.0001706,97475.0,97458.0,1.8780922]
[1736087069138,0.0001706,97475.0,97458.0,1.9780922]
[1736087069344,0.0001706,97475.0,97458.0,2.1280922]
[1736087069555,0.0001706,97475.0,97458.0,2.23207852]
[1736087069759,0.0001706,97475.0,97458.0,2.34627852]
[1736087069914,0.0001706,97475.0,97458.0,2.42707852]
[1736087070123,0.0001706,97475.0,97458.0,2.43007852]
[1736087070528,0.0001706,97475.0,97458.0,2.43807852]
[1736087070802,0.0001706,97475.0,97458.0,2.42907852]
[1736087071005,0.0001706,97475.0,97458.0,2.77748907]
[1736087071138,0.0001706,97475.0,97463.0,0.434685]
[1736087071354,0.0001706,97475.0,97463.0,0.58396258]
[1736087071765,0.0001706,97475.0,97463.0,2.08396258]
[1736087071972,0.0001706,97475.0,97474.0,0.184664]
[1736087072171,0.0001706,97475.0,97474.0,0.29605032]
[1736087072551,0.0001706,97475.0,97474.0,1.79605032]
[1736087072755,0.0001706,97475.0,97474.0,1.90003664]
[1736087073567,0.0001706,97475.0,97474.0,1.89963664]
[1736087073773,0.0763706,97475.0,97474.0,0.0144]
[1736087073969,0.1763706,97475.0,97474.0,0.0144]
[1736087074181,0.0763706,97475.0,97474.0,0.0234]
[1736087074389,0.0763706,97475.0,97474.0,0.0144]
[1736087074794,0.0763706,97475.0,97474.0,0.03880266]
[1736087075006,0.000171,97485.0,97474.0,0.13578898]
[1736087075231,0.00049592,97484.0,97477.0,0.10398632]
[1736087075641,0.00049592,97484.0,97478.0,0.0074]
[1736087075840,0.00049592,97484.0,97479.0,0.10398632]
[1736087076051,0.00049592,97484.0,97462.0,0.284685]
[1736087076052,0.184651,97481.0,97480.0,0.03626463]
[1736087076252,0.184651,97481.0,97480.0,0.0074]
[1736087076667,0.184651,97481.0,97480.0,1.5074]
[1736087078305,0.184651,97481.0,97480.0,1.5164]
[1736087078734,0.184651,97481.0,97480.0,1.5224]
[1736087079319,0.184651,97481.0,97480.0,1.5164]
[1736087079520,0.184651,97481.0,97480.0,1.5184]
[1736087079721,0.184651,97481.0,97480.0,1.61338632]
[1736087080123,0.184651,97481.0,97480.0,1.61638632]
[1736087080895,0.00049592,97484.0,97480.0,1.68037264]
[1736087081095,0.00049592,97484.0,97481.0,0.10398632]
[1736087081278,0.00049592,97484.0,97482.0,0.01335938]
[1736087081412,0.00049592,97484.0,97483.0,0.10398632]
[1736087081843,0.00049592,97484.0,97483.0,1.60398632]
[1736087082674,0.00049592,97484.0,97483.0,1.6143949]
[1736087082879,0.00049592,97484.0,97483.0,1.64733205]
[1736087083075,0.00049592,97484.0,97483.0,1.75131837]
[1736087083486,0.00049592,97484.0,97483.0,1.75031837]
[1736087083964,0.00049592,97484.0,97483.0,2.09181837]
[1736087084704,0.00049592,97484.0,97483.0,2.08281837]
[1736087085489,0.00049592,97484.0,97483.0,2.08781837]
[1736087085862,0.00049592,97484.0,97483.0,2.08281837]
[1736087086272,0.00049592,97484.0,97483.0,2.10081837]
[1736087086474,0.00049592,97484.0,97483.0,2.00081837]
[1736087086650,0.00049592,97484.0,97483.0,1.90931837]
[1736087086855,0.00049592,97484.0,97483.0,2.05449431]
[1736087087057,0.0762,97503.0,97483.0,2.05609431]
[1736087087264,0.00014872,97488.0,97484.0,0.42198653]
[1736087087466,0.184614,97501.0,97485.0,0.13592347]
[1736087087686,0.184619,97498.0,97486.0,0.0074]
[1736087087885,0.184619,97498.0,97487.0,0.10398632]
[1736087088207,0.184619,97498.0,97495.0,1.5]
[1736087088410,0.00448263,97497.0,97496.0,0.20797264]
[1736087089114,0.00448263,97497.0,97496.0,0.21537264]
[1736087090291,0.00448263,97497.0,97496.0,0.007]
[1736087090492,0.00448263,97497.0,97496.0,0.0144]
[1736087090870,0.00448263,97497.0,97496.0,0.0234]
[1736087091080,0.00448263,97497.0,97496.0,0.0144]
[1736087091282,0.230719,97498.0,97496.0,0.0144]
[1736087091484,0.0001708,97497.0,97496.0,0.0164]
[1736087091846,0.1001708,97497.0,97496.0,0.007]
[1736087092053,0.1001708,97497.0,97496.0,0.0144]
[1736087092486,0.266522,97496.0,97495.0,1.5]
[1736087092687,0.366522,97496.0,97495.0,1.5074]
[1736087093643,0.366522,97496.0,97495.0,1.61138632]
[1736087093833,0.366522,97496.0,97495.0,1.5074]
[1736087094735,0.516522,97496.0,97495.0,1.5]
[1736087094984,0.516522,97496.0,97495.0,1.5074]
[1736087095207,0.517522,97496.0,97495.0,1.5074]
[1736087095411,0.518522,97496.0,97495.0,1.5074]
[1736087095584,0.518522,97496.0,97495.0,0.0074]
[1736087095585,0.517522,97496.0,97495.0,0.0074]
[1736087095988,0.518522,97496.0,97495.0,0.0074]
[1736087096224,0.518522,97496.0,97495.0,1.5074]
[1736087099053,0.518522,97496.0,97495.0,0.0074]
[1736087099271,0.186622,97496.0,97495.0,0.0074]
[1736087099482,0.002,97496.0,97495.0,1.61138632]
[1736087099686,0.002,97496.0,97495.0,1.71537264]
[1736087100320,0.001,97496.0,97495.0,1.89999664]
[1736087100534,0.001,97496.0,97495.0,1.71637264]
[1736087100994,0.101,97496.0,97495.0,1.501]
[1736087101204,0.1,97496.0,97495.0,1.50748]
[1736087101631,0.1,97496.0,97495.0,1.50848]
[1736087102048,0.1,97496.0,97495.0,1.51248]
[1736087102262,0.1,97496.0,97495.0,1.52148]
[1736087102464,0.0001708,97497.0,97495.0,1.62546632]
[1736087102739,0.0001708,97497.0,97495.0,0.11646632]
[1736087103048,0.001,97496.0,97495.0,0.005]
[1736087103316,0.184598,97509.0,97495.0,0.005]
[1736087103317,0.0001708,97512.0,97496.0,0.00748]
[1736087103559,0.0001708,97512.0,97499.0,0.10398632]
[1736087103806,0.0001708,97512.0,97511.0,1.5]
[1736087104084,0.0001708,97512.0,97511.0,1.60398632]
[1736087104598,0.0001708,97512.0,97511.0,1.70797264]
[1736087105319,0.0001708,97512.0,97511.0,1.71697264]
[1736087105588,0.0001708,97512.0,97511.0,1.70797264]
[1736087106091,0.0001708,97512.0,97511.0,1.71697264]
[1736087106806,0.0001708,97512.0,97511.0,1.72197264]
[1736087107292,0.0001708,97512.0,97511.0,1.71697264]
[1736087107773,0.0001708,97512.0,97511.0,1.72197264]
[1736087108025,0.0001708,97512.0,97511.0,1.61298632]
[1736087108501,0.0001708,97512.0,97511.0,1.60998632]
[1736087108957,0.0001708,97512.0,97511.0,1.61898632]
[1736087109409,0.0001708,97512.0,97511.0,1.60998632]
[1736087109701,0.0001708,97512.0,97511.0,1.61898632]
[1736087109961,0.0001708,97512.0,97511.0,1.60398632]
[1736087110501,0.0001708,97512.0,97511.0,1.60998632]
[1736087111014,0.0001708,97512.0,97511.0,1.61898632]
[1736087111284,0.0001708,97512.0,97511.0,1.61298632]
[1736087111508,0.0001708,97512.0,97511.0,0.11698632]
[1736087111780,0.0001708,97512.0,97511.0,0.013]
[1736087112046,0.0001708,97512.0,97511.0,1.513]
[1736087112790,0.0001708,97512.0,97511.0,1.504]
[1736087113044,0.0001708,97512.0,97511.0,1.513]
[1736087113296,0.0001708,97512.0,97511.0,1.504]
[1736087113551,0.0001708,97512.0,97511.0,1.51648]
[1736087113807,0.0001708,97512.0,97511.0,1.61146632]
[1736087114062,0.0001708,97512.0,97511.0,1.61546632]
[1736087114314,0.0001708,97512.0,97511.0,1.62446632]
[1736087114561,0.0001708,97512.0,97511.0,1.62046632]
[1736087114806,0.0001708,97512.0,97511.0,1.62446632]
[1736087115316,0.0001708,97512.0,97511.0,1.51648]
[1736087116730,0.0001708,97512.0,97511.0,1.52948]
[1736087116977,0.0001708,97512.0,97511.0,1.51148]
[1736087117792,0.0001708,97512.0,97511.0,1.62046632]
[1736087118005,0.0001708,97512.0,97511.0,1.62446632]
[1736087118327,0.0001708,97512.0,97511.0,1.72845264]
[1736087118596,0.0001708,97512.0,97511.0,1.72445264]
[1736087119132,0.0001708,97512.0,97511.0,1.62046632]
[1736087119337,0.0001708,97512.0,97511.0,1.61146632]
[1736087119803,0.0001708,97512.0,97511.0,1.62046632]
[1736087119959,0.0001708,97512.0,97511.0,1.62546632]
[1736087120309,0.0001708,97512.0,97511.0,1.61646632]
[1736087120508,0.0001708,97512.0,97511.0,1.71545264]
[1736087120714,0.0001708,97512.0,97511.0,1.72045264]
[1736087120930,0.0001708,97512.0,97511.0,1.72945264]
[1736087122706,0.0001708,97512.0,97511.0,1.72045264]
[1736087123068,0.0001708,97512.0,97511.0,1.71545264]
[1736087123275,0.0001708,97512.0,97511.0,1.71945264]
[1736087123480,0.0001708,97512.0,97511.0,1.72845264]
[1736087125011,0.0001708,97512.0,97511.0,1.76038979]
[1736087126233,0.0001708,97512.0,97511.0,2.23365057]
[1736087126554,0.0001708,97512.0,97511.0,2.23965057]
[1736087126852,0.0001708,97512.0,97511.0,2.23065057]
[1736087127085,0.0001708,97512.0,97511.0,2.22465057]
[1736087127259,0.0001708,97512.0,97511.0,1.75638979]
[1736087127642,0.0001708,97512.0,97511.0,1.86238979]
[1736087127844,0.0001708,97512.0,97511.0,2.01238979]
[1736087128218,0.0001708,97512.0,97511.0,2.08908979]
[1736087128449,0.0001708,97530.0,97511.0,2.08908979]
[1736087128450,0.175787,97544.0,97512.0,0.1]
[1736087128654,0.36046872,97544.0,97527.0,0.184564]
[1736087128881,0.36046872,97544.0,97528.0,0.10398632]
[1736087129079,0.36046872,97544.0,97536.0,1.5]
[1736087129283,0.36046872,97544.0,97537.0,0.11146632]
[1736087130065,0.184541,97540.0,97537.0,0.11146632]
[1736087130241,0.184541,97540.0,97538.0,0.10398632]
[1736087130384,0.184541,97540.0,97539.0,0.10398632]
[1736087130591,0.17593572,97544.0,97539.0,0.10398632]
[1736087130852,0.17593572,97544.0,97539.0,0.16142632]
[1736087130853,0.00014872,97544.0,97539.0,0.16142632]
[1736087132795,0.00014872,97544.0,97541.0,0.184537]
[1736087133002,0.00014872,97544.0,97543.0,1.5]
[1736087133210,0.00014872,97544.0,97543.0,1.60398632]
[1736087134468,0.00014872,97544.0,97543.0,1.80252032]
[1736087134886,0.00014872,97544.0,97543.0,1.79752032]
[1736087135095,0.00014872,97544.0,97543.0,1.82943025]
[1736087135305,0.00014872,97544.0,97543.0,1.95863672]
[1736087136342,0.00014872,97544.0,97543.0,1.94963672]
[1736087136544,0.00014872,97544.0,97543.0,1.94463672]
[1736087136747,0.00014872,97544.0,97543.0,1.95363672]
[1736087136868,0.00014872,97544.0,97543.0,1.96163672]
[1736087137927,0.00014872,97544.0,97543.0,1.96899672]
[1736087138133,0.00014872,97544.0,97543.0,1.92972679]
[1736087138334,0.00014872,97544.0,97543.0,1.93708679]
[1736087138535,0.00014872,97544.0,97543.0,1.74519279]
[1736087138957,0.00014872,97544.0,97543.0,1.75255279]
[1736087140194,0.00014872,97544.0,97543.0,1.74519279]
[1736087140382,0.00014872,97544.0,97543.0,1.75255279]
[1736087141722,0.00031952,97544.0,97543.0,1.75255279]
[1736087147051,0.00031952,97544.0,97543.0,1.74519279]
[1736087147261,0.00031952,97544.0,97543.0,1.75255279]
[1736087147408,0.00031952,97544.0,97543.0,1.78441203]
[1736087148105,0.00031952,97544.0,97543.0,1.77705203]
[1736087148263,0.00031952,97544.0,97543.0,1.75255279]
[1736087149035,0.004,97550.0,97544.0,0.184532]
[1736087149235,0.004,97550.0,97545.0,0.14921196]
[1736087149572,0.004,97550.0,97546.0,0.03186626]
[1736087149776,0.004,97550.0,97549.0,1.5]
[1736087149977,0.004,97550.0,97549.0,1.60398632]
[1736087150932,0.004,97550.0,97549.0,1.63585402]
[1736087151142,0.004,97550.0,97549.0,1.73984034]
[1736087151758,0.004,97550.0,97549.0,1.74584034]
[1736087151963,0.004,97550.0,97549.0,1.75484034]
[1736087152402,0.004,97550.0,97549.0,1.81964034]
[1736087153236,0.0041708,97550.0,97549.0,1.81964034]
[1736087153643,0.0041708,97550.0,97549.0,1.81064034]
[1736087153946,0.0041708,97550.0,97549.0,1.81364034]
[1736087154091,0.0041708,97550.0,97549.0,1.82064034]
[1736087154667,0.0041708,97550.0,97549.0,1.81364034]
[1736087154887,0.0041708,97550.0,97549.0,1.82064034]
[1736087156386,0.04,97555.0,97549.0,1.82064034]
[1736087156586,0.04,97555.0,97550.0,0.3337334]
[1736087156767,0.04,97555.0,97551.0,0.0318677]
[1736087156979,0.04,97555.0,97552.0,0.32037002]
[1736087157183,0.04,97555.0,97554.0,1.684513]
[1736087157387,0.04,97555.0,97554.0,1.82036702]
[1736087157591,0.04,97555.0,97554.0,1.92435334]
[1736087158648,0.04,97555.0,97554.0,1.93135334]
[1736087158902,0.04,97555.0,97554.0,1.75584034]
[1736087160177,0.04,97555.0,97554.0,1.74884034]
[1736087160392,0.04,97555.0,97554.0,2.07864034]
[1736087160603,0.04,97555.0,97554.0,2.07564034]
[1736087160816,0.04,97555.0,97554.0,2.08464034]
[1736087161020,0.04,97555.0,97554.0,2.07864034]
[1736087161347,0.04,97555.0,97554.0,2.07664034]
[1736087161554,0.04,97555.0,97554.0,2.41527048]
[1736087161771,0.04,97555.0,97554.0,2.41727048]
[1736087161972,0.0001708,97557.0,97556.0,0.1]
[1736087162201,0.0001708,97557.0,97556.0,0.3992134]
[1736087162759,0.0001708,97557.0,97556.0,1.8992134]
[1736087164068,0.0001708,97557.0,97556.0,2.42831717]
[1736087164294,0.0001708,97557.0,97556.0,2.43731717]
[1736087165123,0.0001708,97557.0,97556.0,2.25384354]
[1736087166205,0.0001708,97557.0,97556.0,2.48318016]
[1736087166600,0.0001708,97557.0,97556.0,2.38318016]
[1736087166803,0.0001708,97557.0,97556.0,2.48318016]
[1736087167788,0.0001708,97557.0,97556.0,2.25384354]
[1736087167991,0.0001708,97557.0,97556.0,2.00384354]
[1736087168199,0.0001708,97557.0,97556.0,2.01116354]
[1736087168819,0.0001708,97557.0,97556.0,2.19477599]
[1736087170181,0.0001708,97557.0,97556.0,1.6725334]
[1736087171239,0.0001708,97557.0,97556.0,1.6652134]
[1736087171434,0.0001708,97557.0,97556.0,1.6725334]
[1736087172872,0.0001708,97557.0,97556.0,1.6652134]
[1736087173076,0.1846778,97557.0,97556.0,1.6652134]
[1736087173301,0.1846778,97557.0,97556.0,1.6406657]
[1736087173920,0.1846778,97557.0,97556.0,1.6336657]
[1736087174325,0.0001708,97557.0,97556.0,1.6396657]
[1736087174759,0.0001708,97557.0,97556.0,1.6336657]
[1736087174961,0.0001708,97557.0,97556.0,1.6246657]
[1736087175192,0.0001708,97557.0,97556.0,1.6376657]
[1736087175609,0.0001708,97557.0,97556.0,1.6286657]
[1736087176014,0.0001708,97557.0,97556.0,1.6376657]
[1736087176221,0.0001708,97557.0,97556.0,1.6286657]
[1736087176427,0.0001708,97557.0,97556.0,1.6246657]
[1736087177104,0.1846778,97557.0,97556.0,1.6173457]
[1736087177275,0.1846778,97557.0,97556.0,1.6246657]
[1736087177488,0.1846778,97557.0,97556.0,1.52767938]
[1736087177939,0.1846778,97557.0,97556.0,1.52067938]
[1736087178259,0.1846778,97557.0,97556.0,1.52567938]
[1736087178708,0.1846778,97557.0,97556.0,1.53467938]
[1736087179540,0.1846778,97557.0,97556.0,1.52567938]
[1736087179762,0.53440395,97557.0,97556.0,1.5]
[1736087179980,0.53440395,97557.0,97556.0,0.01632]
[1736087179981,0.68576412,97557.0,97556.0,0.01632]
[1736087180189,0.68576412,97557.0,97556.0,0.02032]
[1736087180569,0.69028267,97557.0,97556.0,0.01632]
[1736087181104,0.69028267,97557.0,97556.0,0.01732]
[1736087181315,0.69028267,97557.0,97556.0,0.01632]
[1736087181712,0.69028267,97557.0,97556.0,0.009]
[1736087181937,0.70067701,97557.0,97556.0,0.01632]
[1736087182300,0.70067701,97557.0,97556.0,0.018]
[1736087182516,0.57973923,97557.0,97556.0,0.00732]
[1736087182724,0.70383923,97557.0,97556.0,0.00732]
[1736087182927,0.408632,97544.0,97543.0,8.54e-05]
[1736087183143,0.431632,97544.0,97543.0,0.0074054]
[1736087183956,0.78561832,97544.0,97543.0,8.54e-05]
[1736087184113,0.78896461,97544.0,97543.0,0.0074054]
[1736087185408,0.58497829,97544.0,97543.0,0.0074054]
[1736087186478,0.58497829,97544.0,97543.0,8.54e-05]
[1736087186634,0.59297829,97544.0,97543.0,0.0084054]
[1736087187243,0.60446965,97544.0,97543.0,0.0084054]
[1736087187899,0.60446965,97544.0,97543.0,1.5084054]
[1736087190414,0.60446965,97544.0,97543.0,1.5010854]
[1736087190653,0.60446965,97544.0,97543.0,0.0010854]
[1736087190859,0.60446965,97544.0,97543.0,0.0084054]
[1736087191065,0.60446965,97544.0,97543.0,0.0010854]
[1736087191242,0.60446965,97544.0,97543.0,0.0084054]
[1736087192527,0.80845597,97544.0,97543.0,0.0073204]
[1736087192738,0.80845597,97544.0,97543.0,4e-07]
[1736087192943,0.80845597,97544.0,97543.0,0.0073204]
[1736087195668,0.80845597,97544.0,97543.0,4e-07]
[1736087196726,0.4321,97540.0,97539.0,4e-07]
[1736087196938,0.4321,97540.0,97524.0,1.5]
[1736087196939,0.4551,97539.0,97538.0,4e-07]
[1736087197161,0.4551,97539.0,97524.0,1.5]
[1736087197162,0.1821,97525.0,97524.0,1.5]
[1736087197367,0.1821,97525.0,97524.0,1.50746872]
[1736087197368,0.2051,97525.0,97524.0,1.50746872]
[1736087197616,0.389668,97525.0,97524.0,1.50746872]
[1736087197823,0.307568,97525.0,97524.0,1.50746872]
[1736087198654,0.309568,97525.0,97524.0,1.50746872]
[1736087199071,0.307568,97525.0,97524.0,1.50746872]
[1736087199687,0.309568,97525.0,97524.0,1.50746872]
[1736087200785,0.3128463,97525.0,97524.0,1.50746872]
[1736087200991,0.3128463,97525.0,97524.0,1.50846872]
[1736087201430,0.3128463,97525.0,97524.0,0.00846872]
[1736087201839,0.3128463,97525.0,97524.0,1.50846872]
[1736087202463,0.31631475,97525.0,97524.0,1.50846872]
[1736087202854,0.31631475,97525.0,97524.0,1.50855412]
[1736087203312,0.29331475,97525.0,97524.0,1.50855412]
[1736087203536,0.29106273,97525.0,97524.0,1.50855412]
[1736087204440,0.286568,97525.0,97524.0,1.50855412]
[1736087205302,0.28986688,97525.0,97524.0,1.50855412]
[1736087205897,0.286568,97525.0,97524.0,1.50855412]
[1736087210420,0.186568,97525.0,97524.0,1.61254044]
[1736087210623,0.002,97525.0,97524.0,1.61254044]
[1736087210826,0.002,97525.0,97524.0,1.69274044]
[1736087211403,0.002,97525.0,97524.0,1.7236768]
[1736087211622,0.184543,97538.0,97524.0,1.7236768]
[1736087211849,0.184543,97538.0,97525.0,0.239909]
[1736087211997,0.00457454,97537.0,97526.0,0.03193636]
[1736087212384,0.184547,97536.0,97534.0,1.5]
[1736087212583,0.184547,97536.0,97535.0,0.13592268]
[1736087213064,0.184547,97536.0,97535.0,1.63592268]
[1736087213705,0.185547,97536.0,97535.0,1.63592268]
[1736087213910,0.185547,97536.0,97535.0,1.739909]
[1736087214620,0.185547,97536.0,97535.0,1.63592268]
[1736087215033,0.184547,97536.0,97535.0,1.63592268]
[1736087215462,0.00425886,97536.0,97535.0,1.63692268]
[1736087215693,0.001,97536.0,97535.0,1.64092268]
[1736087217149,0.001,97536.0,97535.0,1.64824268]
[1736087217682,0.001,97536.0,97535.0,1.752229]
[1736087218265,0.101,97536.0,97535.0,1.54425636]
[1736087218473,0.101,97536.0,97535.0,1.51232]
[1736087218678,0.101,97536.0,97535.0,1.505]
[1736087218872,0.101,97536.0,97535.0,1.51232]
[1736087219104,0.101,97536.0,97535.0,1.50832]
[1736087219306,0.1,97536.0,97535.0,1.53928008]
[1736087219510,0.3692568,97538.0,97535.0,1.6432664]
[1736087219701,0.3692568,97538.0,97535.0,1.61230632]
[1736087220135,0.1,97536.0,97535.0,1.61430632]
[1736087220548,0.1,97536.0,97535.0,1.61330632]
[1736087221096,0.1847138,97538.0,97535.0,1.71729264]
[1736087221305,0.1847138,97538.0,97536.0,0.1173457]
[1736087221990,0.0001708,97538.0,97537.0,1.5]
[1736087224807,0.0001708,97538.0,97537.0,1.503]
[1736087225463,0.0001708,97538.0,97537.0,1.5]
[1736087225669,0.0001708,97538.0,97537.0,1.502]
[1736087225883,0.0001708,97538.0,97537.0,1.60598632]
[1736087226656,0.0001708,97538.0,97537.0,1.60698632]
[1736087227463,0.0001708,97538.0,97537.0,1.60598632]
[1736087227682,0.0001708,97538.0,97537.0,1.60698632]
[1736087228111,0.0001708,97538.0,97537.0,1.60398632]
[1736087228309,0.0001708,97538.0,97537.0,1.60798632]
[1736087230921,0.0001708,97538.0,97537.0,1.71197264]
[1736087231132,0.0001708,97538.0,97537.0,1.79057264]
[1736087231990,0.0001708,97538.0,97537.0,1.71197264]
[1736087232194,0.0001708,97538.0,97537.0,1.70897264]
[1736087232606,0.0001708,97538.0,97537.0,1.71597264]
[1736087232822,0.0001708,97538.0,97537.0,1.51532]
[1736087233027,0.0001708,97538.0,97537.0,1.50832]
[1736087233455,0.0001708,97538.0,97537.0,1.51332]
[1736087233664,0.0001708,97538.0,97537.0,1.51232]
[1736087233894,0.1001708,97538.0,97537.0,1.505]
[1736087234101,0.1011708,97538.0,97537.0,1.51632]
[1736087234320,0.1001708,97538.0,97537.0,1.51232]
[1736087234524,0.2047708,97538.0,97537.0,0.01232]
[1736087234928,0.2057708,97538.0,97537.0,0.01532]
[1736087235158,0.1241708,97538.0,97537.0,0.01932]
[1736087235375,0.1011708,97538.0,97537.0,0.12330632]
[1736087235628,0.1001708,97538.0,97537.0,0.11530632]
[1736087235841,0.1001708,97538.0,97537.0,0.10398632]
[1736087236043,0.1001708,97538.0,97537.0,0.11130632]
[1736087237762,0.1001708,97538.0,97537.0,0.11430632]
[1736087237997,0.1001708,97538.0,97537.0,0.11439172]
[1736087238400,0.1001708,97538.0,97537.0,0.0074054]
[1736087238602,0.1041708,97538.0,97537.0,1.5074054]
[1736087239025,0.1001708,97538.0,97537.0,1.5074054]
[1736087239818,0.1041708,97538.0,97537.0,1.5074054]
[1736087240694,0.0041708,97538.0,97537.0,1.5074054]
[1736087240900,0.1041708,97538.0,97537.0,1.61139172]
[1736087241293,0.1041708,97538.0,97537.0,1.5074054]
[1736087241913,0.1001708,97538.0,97537.0,1.5074054]
[1736087242321,0.1011708,97538.0,97537.0,1.5074054]
[1736087242685,0.0001708,97538.0,97537.0,1.5084054]
[1736087242889,0.1001708,97538.0,97537.0,1.5084054]
[1736087243099,0.0001708,97538.0,97537.0,1.71637804]
[1736087246733,0.0001708,97538.0,97537.0,1.76487804]
[1736087246941,0.0001708,97538.0,97537.0,1.87548394]
[1736087247366,0.0011708,97538.0,97537.0,1.89961367]
[1736087247921,0.0001708,97544.0,97538.0,0.369086]
[1736087248126,0.0001708,97544.0,97539.0,0.1493516]
[1736087248365,0.0001708,97544.0,97540.0,0.0320059]
[1736087248546,0.0001708,97544.0,97543.0,1.684534]
[1736087248749,0.0001708,97544.0,97543.0,1.82052622]
[1736087249497,0.0001708,97544.0,97543.0,2.29833542]
[1736087249710,0.0001708,97544.0,97543.0,2.48092174]
[1736087249911,0.0001708,97544.0,97543.0,2.48792174]
[1736087250117,0.0011708,97544.0,97543.0,2.49192174]
[1736087250314,0.0004,97559.0,97543.0,2.48792174]
[1736087250543,0.0004,97559.0,97551.0,0.184517]
[1736087250749,0.0004,97559.0,97552.0,0.1493516]
[1736087250976,0.0004,97559.0,97556.0,1.5]
[1736087251230,0.0004,97559.0,97556.0,1.60398632]
[1736087252419,0.0004,97559.0,97556.0,1.60798632]
[1736087253209,0.0011708,97557.0,97556.0,1.60798632]
[1736087253405,0.0011708,97557.0,97556.0,1.71197264]
[1736087253623,0.0001708,97557.0,97556.0,1.71197264]
[1736087253819,0.0011708,97557.0,97556.0,1.71797264]
[1736087254242,0.1001708,97557.0,97556.0,1.60798632]
[1736087254470,0.1001708,97557.0,97556.0,0.11538632]
[1736087254689,0.1011708,97557.0,97556.0,0.0174]
[1736087254889,0.1011708,97557.0,97556.0,1.5174]
[1736087255139,0.1011708,97557.0,97556.0,1.5134]
[1736087255311,0.1011708,97557.0,97556.0,1.5194]
[1736087255957,0.1011708,97557.0,97556.0,1.5134]
[1736087256167,0.1011708,97557.0,97556.0,1.62138632]
[1736087256594,0.0001708,97557.0,97556.0,1.61538632]
[1736087256799,0.0011708,97557.0,97556.0,1.62038632]
[1736087257221,0.0011708,97557.0,97556.0,1.72437264]
[1736087257608,0.0001708,97557.0,97556.0,1.71937264]
[1736087257962,0.0011708,97557.0,97556.0,1.72437264]
[1736087258163,0.0011708,97557.0,97556.0,1.72037264]
[1736087258493,0.0001708,97557.0,97556.0,1.71837264]
[1736087259072,0.0001708,97557.0,97556.0,1.71537264]
[1736087259277,0.0001708,97557.0,97556.0,1.72137264]
[1736087259980,0.0011708,97557.0,97556.0,1.72037264]
[1736087260207,0.0001708,97557.0,97556.0,1.71537264]
[1736087260455,0.0001708,97557.0,97556.0,1.71937264]
[1736087260650,0.0011708,97557.0,97556.0,1.72437264]
[1736087261173,0.1001708,97557.0,97556.0,1.61538632]
[1736087261580,0.1011708,97557.0,97556.0,1.505]
[1736087261808,0.22679695,97557.0,97556.0,1.505]
[1736087262017,0.3757708,97557.0,97556.0,1.5164]
[1736087262857,0.3757708,97557.0,97556.0,1.5124]
[1736087263063,0.3757708,97557.0,97556.0,1.505]
[1736087263279,0.3987708,97557.0,97556.0,1.5124]
[1736087263486,0.3977708,97557.0,97556.0,1.5074]
[1736087263702,0.3977708,97557.0,97556.0,1.5]
[1736087263913,0.361132,97544.0,97543.0,8.54e-05]
[1736087264124,0.361132,97544.0,97543.0,0.0074854]
[1736087264345,0.361132,97544.0,97543.0,1.5074854]
[1736087264786,0.361132,97544.0,97543.0,1.5000854]
[1736087264990,0.361132,97544.0,97543.0,1.5074854]
[1736087265822,0.361132,97544.0,97543.0,1.5084854]
[1736087266835,0.582132,97544.0,97543.0,1.5074854]
[1736087268014,0.590132,97544.0,97543.0,0.0074854]
[1736087268990,0.590132,97544.0,97543.0,8.54e-05]
[1736087269190,0.590132,97544.0,97543.0,0.0074854]
[1736087269413,0.69411832,97544.0,97543.0,0.0074854]
[1736087271306,0.68611832,97544.0,97543.0,0.0074854]
[1736087271727,0.69411832,97544.0,97543.0,0.0074854]
[1736087271931,0.69411832,97544.0,97543.0,1.5074854]
[1736087272534,0.69428912,97544.0,97543.0,1.5074854]
[1736087274053,0.5903028,97544.0,97543.0,1.5074854]
[1736087274639,0.5903028,97544.0,97543.0,1.5000854]
[1736087274874,0.5903028,97544.0,97543.0,0.0074854]
[1736087275082,0.5892028,97544.0,97543.0,0.0074854]